Workbook

Sheet Página 1
E1: ORÇAMENTO
B3: Data de Elaboração do Orçamento: Dezembro de 2023 | J3: fl. 01/02
B4: Nome da Obra: Salão Comunitário Linha Aliança
B5: Área: 748,80 m²
B6: Endereço: Linha Aliança, Interior, Cunhataí/SC | F6: 22 | I6: 22
B7: Tipo de Intervenção: PROJETO EXECUTIVO - INSTALAÇÕES ELÉTRICAS
B8: Item | C8: Sinapi | D8: Valor | E8: Discriminação | F8: Quant. | G8: Unid. | H8: Valor Unit. | I8: Total | J8: Geral
E9: ORÇAMENTO
B10: 1 | E10: INSTALAÇÕES ELÉTRICAS
B11: 1.1 | C11: 411 I. | D11: 0.23 | E11: ABRACADEIRA DE NYLON PARA AMARRACAO DE CABOS, COMPRIMENTO DE 200 X *4,6* MM | F11: 30 | G11: un | H11: =D11*(($F$6/100)+1) -> 0.28 | I11: =SUM(F11*H11) -> 8.4
B12: 1.2 | C12: 91939 | D12: 32.65 | E12: CAIXA RETANGULAR 4" X 2" ALTA (2,00 M DO PISO), PVC, INSTALADA EM PAREDE - FORNECIMENTO E INSTALAÇÃO | F12: 8 | G12: un | H12: =D12*(($F$6/100)+1) -> 39.83 | I12: =SUM(F12*H12) -> 318.64
B13: 1.3 | C13: 91940 | D13: 18.48 | E13: CAIXA RETANGULAR 4" X 2" MÉDIA (1,30 M DO PISO), PVC, INSTALADA EM PAREDE - FORNECIMENTO E INSTALAÇÃO | F13: 31 | G13: un | H13: 22.55 | I13: 699.05
B14: 1.4 | C14: 91941 | D14: 11.52 | E14: CAIXA RETANGULAR 4" X 2" BAIXA (0,30 M DO PISO), PVC, INSTALADA EM PAREDE - FORNECIMENTO E INSTALAÇÃO | F14: 2 | G14: un | H14: 14.05 | I14: 28.1
B15: 1.5 | C15: 90456 | D15: 6.03 | E15: QUEBRA EM ALVENARIA PARA INSTALAÇÃO DE CAIXA DE TOMADA (4X4 OU 4X2) | F15: =IFERROR(F14+F13+F12,999) -> 41 | G15: un | H15: 7.36 | I15: 301.76
B16: 1.6 | C16: 91992 | D16: 48.12 | E16: TOMADA ALTA DE EMBUTIR (1 MÓDULO), 2P+T 10 A, INCLUINDO SUPORTE E PLACA - FORNECIMENTO E INSTALAÇÃO | F16: 9 | G16: un | H16: 58.71 | I16: 528.39
B17: 1.7 | C17: 92004 | D17: 59.88 | E17: TOMADA ALTA DE EMBUTIR (2 MÓDULOS), 2P+T 10 A, INCLUINDO SUPORTE E PLACA - FORNECIMENTO E INSTALAÇÃO | F17: 9 | G17: un | H17: =D17*(($F$6/100)+1) -> 73.05 | I17: =SUM(F17*H17) -> 657.45
B18: 1.8 | C18: 91996 | D18: 37.5 | E18: TOMADA MÉDIA DE EMBUTIR (1 MÓDULO), 2P+T 10 A, INCLUINDO SUPORTE E PLACA - FORNECIMENTO E INSTALAÇÃO | F18: 16 | G18: un | H18: 45.75 | I18: 732
B19: 1.9 | C19: 92004 | D19: 59.88 | E19: TOMADA MÉDIA DE EMBUTIR (2 MÓDULOS), 2P+T 10 A, INCLUINDO SUPORTE E PLACA - FORNECIMENTO E INSTALAÇÃO | F19: 1 | G19: un | H19: 73.05 | I19: 73.05
B20: 1.10 | C20: 91996 | D20: 37.5 | E20: TOMADA MÉDIA DE EMBUTIR (1 MÓDULO), 2P+T 10 A, INCLUINDO SUPORTE E PLACA - FORNECIMENTO E INSTALAÇÃO | F20: 1 | G20: un | H20: =D20*(($F$6/100)+1) -> 45.75 | I20: =SUM(F20*H20) -> 45.75
B21: 1.11 | C21: COTAÇÃO | D21: 1.99 | E21: CONECTOR WAGO PARA CABOS ATÉ 6 MM | F21: =21*3 -> 63 | G21: un | H21: 2.43 | I21: 153.09
B22: 1.12 | C22: 1550 I. | D22: 8.45 | E22: CONECTOR METALICO TIPO PARAFUSO FENDIDO (SPLIT BOLT), PARA CABOS ATE 25 MM2 | F22: 3 | G22: un | H22: =D22*(($F$6/100)+1) -> 10.31 | I22: =SUM(F22*H22) -> 30.93
B23: 1.13 | C23: 38055 I. | D23: 5.24 | E23: GRAMPO METALICO TIPO OLHAL PARA HASTE DE ATERRAMENTO DE 1/2'', CONDUTOR DE *10* A 50 MM2 | F23: 9 | G23: un | H23: =D23*(($F$6/100)+1) -> 6.39 | I23: =SUM(F23*H23) -> 57.51
B24: 1.14 | C24: 91953 | D24: 31.83 | E24: INTERRUPTOR SIMPLES (1 MÓDULO), 10A/250V, INCLUINDO SUPORTE E PLACA - FORNECIMENTO E INSTALAÇÃO | F24: 9 | G24: un | H24: 38.83 | I24: 349.47
B25: 1.15 | C25: 91959 | D25: 48.53 | E25: INTERRUPTOR SIMPLES (2 MÓDULOS), 10A/250V, INCLUINDO SUPORTE E PLACA - FORNECIMENTO E INSTALAÇÃO | F25: 4 | G25: un | H25: 59.21 | I25: 236.84
B26: 1.16 | C26: 92023 | D26: 54.15 | E26: INTERRUPTOR SIMPLES (1 MÓDULO) COM 1 TOMADA DE EMBUTIR 2P+T 10 A, INCLUINDO SUPORTE E PLACA - FORNECIMENTO E INSTALAÇÃO | F26: 1 | G26: un | H26: 66.06 | I26: 66.06
B27: 1.17 | C27: 92029 | D27: 61.1 | E27: INTERRUPTOR PARALELO (1 MÓDULO) COM 1 TOMADA DE EMBUTIR 2P+T 10 A, INCLUINDO SUPORTE E PLACA - FORNECIMENTO E INSTALAÇÃO | F27: 1 | G27: un | H27: =D27*(($F$6/100)+1) -> 74.54 | I27: =SUM(F27*H27) -> 74.54
B28: 1.18 | C28: 91955 | D28: 38.72 | E28: INTERRUPTOR PARALELO (1 MÓDULO), 10A/250V, INCLUINDO SUPORTE E PLACA - FORNECIMENTO E INSTALAÇÃO | F28: 1 | G28: un | H28: 47.24 | I28: 47.24
B29: 1.19 | C29: 38091 I. | D29: 2.61 | E29: ESPELHO / PLACA CEGA 4" X 2", PARA INSTALACAO DE TOMADAS E INTERRUPTORES | F29: 4 | G29: un | H29: 3.18 | I29: 12.72
B30: 1.20 | C30: 39390 I. | D30: 29.78 | E30: LUMINARIA LED REFLETOR RETANGULAR BIVOLT, LUZ BRANCA, 30 W | F30: 7 | G30: un | H30: 36.33 | I30: 254.31
B31: 1.21 | C31: 39391 I. | D31: 33.44 | E31: LUMINARIA LED REFLETOR RETANGULAR BIVOLT, LUZ BRANCA, 50 W | F31: 28 | G31: un | H31: 40.8 | I31: 1142.4
B32: 1.22 | C32: COTAÇÃO | D32: 19.86 | E32: PLAFON LED 18W/20W | F32: 6 | G32: un | H32: 24.23 | I32: 145.38
B33: 1.23 | C33: COTAÇÃO | D33: 17.82 | E33: LUMINÁRIA SLIM LED 20W | F33: 15 | G33: un | H33: 21.74 | I33: 326.1
B34: 1.24 | C34: COTAÇÃO | D34: 20.49 | E34: LUMINÁRIA SLIM LED 40W | F34: 17 | G34: un | H34: =D34*(($F$6/100)+1) -> 25 | I34: =SUM(F34*H34) -> 425
B35: 1.25 | C35: COTAÇÃO | D35: 41.9 | E35: LUMINÁRIA SLIM LED 80W | F35: 6 | G35: un | H35: =D35*(($F$6/100)+1) -> 51.12 | I35: =SUM(F35*H35) -> 306.72
B36: 1.26 | C36: COTAÇÃO | D36: 40.98 | E36: RELÉ FOTOELÉTRICO | F36: 7 | G36: un | H36: =D36*(($F$6/100)+1) -> 50 | I36: =SUM(F36*H36) -> 350
B37: 1.27 | C37: 97597 | D37: 78.72 | E37: SENSOR DE PRESENÇA COM FOTOCÉLULA, FIXAÇÃO EM TETO - FORNECIMENTO E INST. | F37: 1 | G37: un | H37: 96.04 | I37: 96.04
B38: 1.28 | C38: 91845 | D38: 8.02 | E38: ELETRODUTO FLEXÍVEL CORRUGADO REFORÇADO, PVC, DN 25 MM (3/4"), PARA CIRCUITOS TERMINAIS, INSTALADO EM LAJE - FORNECIMENTO E INSTALAÇÃO | F38: 2 | G38: m | H38: 9.78 | I38: 19.56
B39: 1.29 | C39: 91847 | D39: 12.64 | E39: ELETRODUTO FLEXÍVEL CORRUGADO REFORÇADO, PVC, DN 25 MM (1"), PARA CIRCUITOS TERMINAIS, INSTALADO EM LAJE - FORNECIMENTO E INSTALAÇÃO | F39: 5 | G39: m | H39: 15.42 | I39: 77.1
B40: 1.30 | C40: 91854 | D40: 9.82 | E40: ELETRODUTO FLEXÍVEL CORRUGADO, PVC, DN 25 MM (3/4"), PARA CIRCUITOS TERMINAIS, INSTALADO EM PAREDE - FORNECIMENTO E INSTALAÇÃO | F40: 72 | G40: m | H40: 11.98 | I40: 862.56
B41: 1.31 | C41: 90447 | D41: 9.1 | E41: RASGO EM ALVENARIA PARA ELETRODUTOS COM DIAMETROS MENORES OU IGUAIS A 40 MM | F41: =IFERROR(F40,999) -> 72 | G41: m | H41: 11.1 | I41: 799.2
B42: 1.32 | C42: 90466 | D42: 15.55 | E42: CHUMBAMENTO LINEAR EM ALVENARIA PARA RAMAIS/DISTRIBUIÇÃO COM DIÂMETROS MENORES OU IGUAIS A 40 MM | F42: =IFERROR(F41,999) -> 72 | G42: m | H42: 18.97 | I42: 1365.84
B43: 1.33 | C43: 39210 I. | D43: 0.96 | E43: ARRUELA PARA ELETRODUTO 1" | F43: 5 | G43: un | H43: 1.17 | I43: 5.85
B44: 1.34 | C44: 39212 I. | D44: 1.92 | E44: ARRUELA PARA ELETRODUTO 1.1/2" | F44: 1 | G44: un | H44: =D44*(($F$6/100)+1) -> 2.34 | I44: =SUM(F44*H44) -> 2.34
B45: 1.35 | C45: 39176 I. | D45: 1.29 | E45: BUCHA EM ALUMINIO, COM ROSCA, DE 1", PARA ELETRODUTO | F45: 5 | G45: un | H45: =D45*(($F$6/100)+1) -> 1.57 | I45: =SUM(F45*H45) -> 7.85
B46: 1.36 | C46: 39178 I. | D46: 2.18 | E46: BUCHA EM ALUMINIO, COM ROSCA, DE 1.1/2", PARA ELETRODUTO | F46: 1 | G46: un | H46: =D46*(($F$6/100)+1) -> 2.66 | I46: =SUM(F46*H46) -> 2.66
B47: 1.37 | C47: 96562 | D47: 59.53 | E47: SUPORTE PARA ELETROCALHA LISA OU PERFURADA EM AÇO GALVANIZADO, LARGURA 200 OU 400 MM E ALTURA 50 MM, ESPAÇADO A CADA 1,5 M, EM PERFILADO DE SEÇÃO 38X76 MM, POR METRO DE ELETRECOLHA FIXADA | F47: 66 | G47: m | H47: 72.63 | I47: 4793.58
B48: 1.38 | C48: 39328 I. | D48: 5.85 | E48: PERFILADO LISO OU PERFURADO 19 X 38 MM | F48: 27 | G48: m | H48: 7.14 | I48: 192.78
B49: 1.39 | C49: 39028 I. | D49: 10.64 | E49: PERFILADO LISO SIMPLES 38 X 38 MM, CHAPA 22 | F49: 66 | G49: m | H49: 12.98 | I49: 856.68
B50: 1.40 | C50: COTAÇÃO | D50: 1.57 | E50: SUSPENSOR PARA CABO DE AÇO 1/8" | F50: 10 | G50: un | H50: 1.92 | I50: 19.2
B51: 1.41 | C51: COTAÇÃO | D51: 1.05 | E51: CABO DE AÇO 1/8" | F51: 25 | G51: m | H51: 1.28 | I51: 32
B52: 1.42 | C52: COTAÇÃO | D52: 0.64 | E52: GRAMPO PARA CABO DE AÇO | F52: 25 | G52: un | H52: 0.78 | I52: 19.5
B53: 1.43 | C53: COTAÇÃO | D53: 2.43 | E53: JUNÇÃO I PARA PERFILADO | F53: =8+12 -> 20 | G53: un | H53: 2.96 | I53: 59.2
B54: 1.44 | C54: COTAÇÃO | D54: 5.96 | E54: CURVA HORIZONTAL 90° PARA PERFILADO | F54: 6 | G54: un | H54: 7.27 | I54: 43.62
B55: 1.45 | C55: COTAÇÃO | D55: 1.76 | E55: SAÍDA FINAL PARA ELETRODUTO 3/4" | F55: 1 | G55: un | H55: =D55*(($F$6/100)+1) -> 2.15 | I55: =SUM(F55*H55) -> 2.15
B56: 1.46 | C56: COTAÇÃO | D56: 4.01 | E56: SAÍDA LATERAL PARA ELETRODUTO 3/4" | F56: 17 | G56: un | H56: =D56*(($F$6/100)+1) -> 4.89 | I56: =SUM(F56*H56) -> 83.13
B57: 1.47 | C57: COTAÇÃO | D57: 4.26 | E57: SAÍDA LATERAL PARA ELETRODUTO 1" | F57: 5 | G57: un | H57: 5.2 | I57: 26
B58: 1.48 | C58: COTAÇÃO | D58: 4.01 | E58: SAÍDA SUPERIOR PARA ELETRODUTO 1/2" | F58: 7 | G58: un | H58: 4.89 | I58: 34.23
B59: 1.49 | C59: COTAÇÃO | D59: 0.33 | E59: PARAFUSO CABEÇA DE LENTILHA | F59: =IFERROR(F53*4+F55*2+F58*2,9999) -> 96 | G59: un | H59: 0.4 | I59: 38.4
B60: 1.50 | C60: COTAÇÃO | D60: 0.08 | E60: PORCA DE AÇO SEXTAVADA | F60: =IFERROR(F59,9999) -> 96 | G60: un | H60: 0.1 | I60: 9.6
B61: 1.51 | C61: COTAÇÃO | D61: 0.06 | E61: ARRUELA DE PRESSÃO | F61: =IFERROR(F60,9999) -> 96 | G61: un | H61: 0.07 | I61: 6.72
B62: 1.52 | C62: 21136 I. | D62: 20.9 | E62: ELETRODUTO EM ACO GALVANIZADO ELETROLITICO, DIAMETRO 1", NBR5624 OU 13057 | F62: 15 | G62: m | H62: 25.5 | I62: 382.5
B63: 1.53 | C63: 21128 I. | D63: 16.17 | E63: ELETRODUTO EM ACO GALVANIZADO ELETROLITICO, DIAMETRO 3/4", NBR5624 OU 13057 | F63: 22 | G63: m | H63: 19.73 | I63: 434.06
B64: 1.54 | C64: 2637 I. | D64: 2.98 | E64: LUVA 3/4" OU UNIDUT 3/4" PARA ELETRODUTO DE AÇO GALVANIZADO | F64: 4 | G64: un | H64: =D64*(($F$6/100)+1) -> 3.64 | I64: =SUM(F64*H64) -> 14.56
B65: 1.55 | C65: 2638 I. | D65: 3.46 | E65: LUVA 1" OU UNIDUT 1" PARA ELETRODUTO DE AÇO GALVANIZADO | F65: 3 | G65: un | H65: =D65*(($F$6/100)+1) -> 4.22 | I65: =SUM(F65*H65) -> 12.66
B66: 1.56 | C66: 2633 I. | D66: 7.9 | E66: CURVA 90 GRAUS, PARA ELETRODUTO, EM ACO GALVANIZADO ELETROLITICO, DIAMETRO DE 20 MM (3/4") - NBR5624 OU NBR13057 OU CONECTOR CURVO COM JANELA | F66: 16 | G66: un | H66: 9.64 | I66: 154.24
B67: 1.57 | C67: 2617 I. | D67: 10.74 | E67: CURVA 90 GRAUS, PARA ELETRODUTO, EM ACO GALVANIZADO ELETROLITICO, DIAMETRO DE 25 MM (1") - NBR5624 OU NBR13057 OU CONECTOR CURVO COM JANELA | F67: 6 | G67: un | H67: 13.1 | I67: 78.6
B68: 1.58 | C68: 39128 I. | D68: 1.23 | E68: ABRAÇADEIRA PARA ELETRODUTO 3/4" | F68: 20 | G68: un | H68: 1.5 | I68: 30
B69: 1.59 | C69: 39129 I. | D69: 1.32 | E69: ABRAÇADEIRA PARA ELETRODUTO 1" | F69: 12 | G69: un | H69: 1.61 | I69: 19.32
B70: 1.60 | C70: 95778 | D70: 29.25 | E70: CONDULETE DE ALUMÍNIO, TIPO C, PARA ELETRODUTO DE AÇO GALVANIZADO DN 20 MM (3/4''), APARENTE - FORNECIMENTO E INSTALAÇÃO | F70: 3 | G70: un | H70: 35.69 | I70: 107.07
B71: 1.61 | C71: 95779 | D71: 24.27 | E71: CONDULETE DE ALUMÍNIO, TIPO E, PARA ELETRODUTO DE AÇO GALVANIZADO DN 20 MM (3/4''), APARENTE - FORNECIMENTO E INSTALAÇÃO | F71: 18 | G71: un | H71: 29.61 | I71: 532.98
B72: 1.62 | C72: 95787 | D72: 29.32 | E72: CONDULETE DE ALUMÍNIO, TIPO LR OU LL, PARA ELETRODUTO DE AÇO GALVANIZADO DN 20 MM (3/4''), APARENTE - FORNECIMENTO E INSTALAÇÃO | F72: 1 | G72: un | H72: 35.77 | I72: 35.77
B73: 1.63 | C73: 95795 | D73: 33.44 | E73: CONDULETE DE ALUMÍNIO, TIPO T, PARA ELETRODUTO DE AÇO GALVANIZADO DN 20 MM (3/4''), APARENTE - FORNECIMENTO E INSTALAÇÃO. | F73: 2 | G73: un | H73: 40.8 | I73: 81.6
B74: 1.64 | C74: 95801 | D74: 40.08 | E74: CONDULETE DE ALUMÍNIO, TIPO X OU TB, PARA ELETRODUTO DE AÇO GALVANIZADO DN 20 MM (3/4''), APARENTE - FORNECIMENTO E INSTALAÇÃO. | F74: 3 | G74: un | H74: 48.9 | I74: 146.7
B75: 1.65 | C75: 97881 | D75: 132.73 | E75: CAIXA ENTERRADA ELÉTRICA RETANGULAR, EM CONCRETO PRÉ-MOLDADO, FUNDO COM BRITA, DIMENSÕES INTERNAS: 0,3X0,3X0,3 M | F75: 2 | G75: un | H75: 161.93 | I75: 323.86
B76: 1.66 | C76: 97883 | D76: 406.22 | E76: CAIXA ENTERRADA ELÉTRICA RETANGULAR, EM CONCRETO PRÉ-MOLDADO, FUNDO COM BRITA, DIMENSÕES INTERNAS: 0,6X0,6X0,5 M | F76: 1 | G76: un | H76: 495.59 | I76: 495.59
B77: 1.67 | C77: 868 I. | D77: 23.77 | E77: CABO DE COBRE NU 25 MM2 MEIO-DURO | F77: 18 | G77: m | H77: =D77*(($F$6/100)+1) -> 29 | I77: =SUM(F77*H77) -> 522
B78: 1.68 | C78: 90105 | D78: 8.7 | E78: ESCAVAÇÃO MECANIZADA DE VALA COM PROFUNDIDADE ATÉ 1,5 M (MÉDIA MONTANTE E JUSANTE/UMA COMPOSIÇÃO POR TRECHO), RETROESCAV. (0,26 M3), LARGURA MENOR QUE 0,8 M, EM SOLO DE 1A CATEGORIA, LOCAIS COM BAIXO NÍVEL DE INTERFERÊNCIA | F78: =(18+3)*0.5*0.8 -> 8.4 | G78: m³ | H78: 10.61 | I78: 89.12
B79: 1.69 | C79: 93380 | D79: 15.09 | E79: REATERRO MECANIZADO DE VALA COM RETROESCAVADEIRA (CAPACIDADE DA CAÇAMBDA RETRO: 0,26 M³ / POTÊNCIA: 88 HP), LARGURA ATÉ 0,8 M, PROFUNDIDADE DE 1,5 A 3,0 M, COM SOLO DE 1ª CATEGORIA EM LOCAIS COM BAIXO NÍVEL DE INTERFERÊNCIA | F79: =IFERROR(F78,9999) -> 8.4 | G79: m³ | H79: 18.41 | I79: 154.64
B80: 1.70 | C80: 97667 | D80: 7.87 | E80: ELETRODUTO FLEXÍVEL CORRUGADO, PEAD, DN 50 (1.1/2"), PARA REDE ENTERRADA DE DISTRIBUIÇÃO DE ENERGIA ELÉTRICA - FORNECIMENTO E INSTALAÇÃO | F80: 5 | G80: m | H80: 9.6 | I80: 48
B81: 1.71 | C81: COTAÇÃO | D81: 0.83 | E81: FITA DE ADVERTÊNCIA "CUIDADO LINHA ELÉTRICA" | F81: 5 | G81: m | H81: =D81*(($F$6/100)+1) -> 1.01 | I81: =SUM(F81*H81) -> 5.05
B82: 1.72 | C82: 91933 | D82: 15.6 | E82: CABO DE COBRE FLEXÍVEL ISOLADO, 10 MM², ANTI-CHAMA 0,6/1,0 KV, PARA CIRCUITOS TERMINAIS - FORNECIMENTO E INSTALAÇÃO | F82: 21 | G82: m | H82: =D82*(($F$6/100)+1) -> 19.03 | I82: =SUM(F82*H82) -> 399.63
B83: 1.73 | C83: 91927 | D83: 4.73 | E83: CABO DE COBRE FLEXÍVEL, 2,5 MM², ISOLADO EM HEPR COM COBERTURA EM SHF1 PARA TENSÕES DE 1 kV | F83: =684+984+419+371-322 -> 2136 | G83: m | H83: =D83*(($F$6/100)+1) -> 5.77 | I83: =SUM(F83*H83) -> 12324.72
B84: 1.74 | C84: 91931 | D84: 9.79 | E84: CABO DE COBRE FLEXÍVEL, 6 MM², ISOLADO EM HEPR COM COBERTURA EM SHF1 PARA TENSÕES DE 1 kV | F84: =50+50+58 -> 158 | G84: m | H84: 11.94 | I84: 1886.52
B85: 1.75 | C85: 39257 I. | D85: 5.33 | E85: CABO DE COBRE MULTIPOLAR 3x1,5 mm² - ISOLADO EM HEPR E COBERTURA EM SHF1 | F85: 120 | G85: m | H85: =D85*(($F$6/100)+1) -> 6.5 | I85: =SUM(F85*H85) -> 780
B86: 1.76 | C86: 20111 I. | D86: 10.12 | E86: FITA ISOLANTE ADESIVA ANTICHAMA, USO ATE 750 V, EM ROLO DE 19 MM X 20 M | F86: 6 | G86: un | H86: 12.35 | I86: 74.1
B87: 1.77 | C87: 404 I. | D87: 1.38 | E87: FITA ISOLANTE DE BORRACHA AUTOFUSAO, USO ATE 69 KV (ALTA TENSAO) | F87: 1.5 | G87: m | H87: 1.68 | I87: 2.52
B88: 1.78 | C88: 96985 | D88: 70.3 | E88: HASTE DE ATERRAMENTO 5/8" | F88: 9 | G88: un | H88: 85.77 | I88: 771.93
B89: 1.79 | C89: 93653 | D89: 11.22 | E89: DISJUNTOR MONOPOLAR TIPO DIN, CORRENTE NOMINAL DE 10A - FORNECIMENTO E INSTALAÇÃO | F89: 10 | G89: un | H89: 13.69 | I89: 136.9
B90: 1.80 | C90: 93655 | D90: 13.23 | E90: DISJUNTOR MONOPOLAR TIPO DIN, CORRENTE NOMINAL DE 20A - FORNECIMENTO E INSTALAÇÃO | F90: 1 | G90: un | H90: 16.14 | I90: 16.14
B91: 1.81 | C91: 93658 | D91: 21.38 | E91: DISJUNTOR MONOPOLAR TIPO DIN, CORRENTE NOMINAL DE 40A - FORNECIMENTO E INSTALAÇÃO | F91: 1 | G91: un | H91: 26.08 | I91: 26.08
B92: 1.82 | C92: 93666 | D92: 71.45 | E92: DISJUNTOR BIPOLAR TIPO DIN, CORRENTE NOMINAL DE 50A - FORNECIMENTO E INSTALAÇÃO | F92: 1 | G92: un | H92: =D92*(($F$6/100)+1) -> 87.17 | I92: =SUM(F92*H92) -> 87.17
B93: 1.83 | C93: 39445 I. | D93: 127.21 | E93: DISPOSITIVO DR, 2 POLOS, SENSIBILIDADE DE 30 MA, CORRENTE DE 25 A, TIPO AC | F93: 1 | G93: un | H93: =D93*(($F$6/100)+1) -> 155.2 | I93: =SUM(F93*H93) -> 155.2
B94: 1.84 | C94: 39457 I. | D94: 158.12 | E94: DISPOSITIVO DR, 4 POLOS, SENSIBILIDADE DE 30 MA, CORRENTE DE 63 A, TIPO AC | F94: 1 | G94: un | H94: 192.91 | I94: 192.91
B95: 1.85 | C95: 90458 | D95: 39.28 | E95: QUEBRA EM ALVENARIA PARA QUADRO DE DISTRIBUIÇÃO | F95: 1 | G95: un | H95: 47.92 | I95: 47.92
B96: 1.86 | C96: 101883 | D96: 518.01 | E96: QUADRO DE DISTRIBUIÇÃO DE ENERGIA EM CHAPA DE AÇO GALVANIZADO, DE EMBUTIR, COM BARRAMENTO TRIFÁSICO, PARA 18 DISJUNTORES DIN 100A - FORNECIMENTO E INSTALAÇÃO | F96: 1 | G96: un | H96: 631.97 | I96: 631.97
B97: 1.87 | C97: COTAÇÃO | D97: 221.23 | E97: ALARME AUDIO VISUAL PARA SAN PCD COM 2 BOTOEIRAS KIT COMPLETO (OPÇÃO COM FIO) | F97: 1 | G97: un | H97: 269.9 | I97: 269.9
B98: 1.88 | C98: 88247 | D98: 22.17 | E98: AUXILIAR DE ELETRICISTA COM ENCARGOS COMPLEMENTARES | F98: 72 | G98: h | H98: 27.05 | I98: 1947.6
B99: 1.89 | C99: 88264 | D99: 32.58 | E99: ELETRICISTA COM ENCARGOS COMPLEMENTARES | F99: =F98 -> 72 | G99: h | H99: 39.75 | I99: 2862
E101: Total do item 1................................................................................................................................................................................................................................. | J101: =SUM(I11:I99) -> 43108.22
B102: 2 | E102: SISTEMAS PREVENTIVOS CONTRA INCÊNDIO
B103: 2.1 | C103: 88247 | D103: 22.17 | E103: AUXILIAR DE ELETRICISTA COM ENCARGOS COMPLEMENTARES | F103: 4 | G103: h | H103: =D103*(($F$6/100)+1) -> 27.05 | I103: =SUM(F103*H103) -> 108.2
B104: 2.2 | C104: 88264 | D104: 32.58 | E104: ELETRICISTA COM ENCARGOS COMPLEMENTARES | F104: 4 | G104: h | H104: =D104*(($F$6/100)+1) -> 39.75 | I104: 159
B105: 2.3 | C105: COTAÇÃO | D105: 278.05 | E105: LUMINARIA TIPO PLACA DE SAÍDA - 51X31 CM - BLOCO AUTONOMO | F105: 2 | G105: un | H105: =D105*(($F$6/100)+1) -> 339.22 | I105: 678.44
B106: 2.4 | C106: COTAÇÃO | D106: 45.9 | E106: LUMINARIA TIPO PLACA DE SAÍDA - 20X10 CM - BLOCO AUTONOMO | F106: 11 | G106: un | H106: =D106*(($F$6/100)+1) -> 56 | I106: =SUM(F106*H106) -> 616
B107: 2.5 | C107: COTAÇÃO | D107: 52.16 | E107: LUMINÁRIA DE EMERGÊNCIA TIPO BLOCO AUTONOMO COM 2 FAROLETES E 600 LUMENS | F107: 4 | G107: un | H107: =D107*(($F$6/100)+1) -> 63.64 | I107: =SUM(F107*H107) -> 254.56
B108: 2.6 | C108: COTAÇÃO | D108: 68.04 | E108: LUMINÁRIA DE EMERGÊNCIA TIPO BLOCO AUTONOMO COM 2 FAROLETES E 1200 LUMENS | F108: 3 | G108: un | H108: =D108*(($F$6/100)+1) -> 83.01 | I108: 249.03
B109: 2.7 | C109: COTAÇÃO | D109: 89.36 | E109: LUMINÁRIA DE EMERGÊNCIA TIPO BLOCO AUTONOMO COM 2 FAROLETES E 2000 LUMENS | F109: 5 | G109: un | H109: 109.02 | I109: 545.1
B110: 2.8 | C110: 97599 | D110: 21.81 | E110: LUMINÁRIA DE EMERGÊNCIA, COM 30 LÂMPADAS LED DE 2 W, SEM REATOR - FORNECIMENTO E INSTALAÇÃO | F110: 3 | G110: un | H110: =D110*(($F$6/100)+1) -> 26.61 | I110: 79.83
E112: Total do item.............................................................................................................................................................................................................................................................................. | J112: =SUM(I103:I110) -> 2690.16
B113: 3 | E113: INSTALAÇÕES DA ENTRADA DE ENERGIA
B114: 3.1 | C114: COMPOSIÇÃO | D114: 2513.62 | E114: ENTRADA DE ENERGIA ELÉTRICA, AÉREA, BIFÁSICA, COM POSTE TIPO KIT POSTINHO, RAMAL DE LIGAÇÃO E ENTRADA 10 MM², DISJUNTOR DE PROTEÇÃO BIFÁSICO 50A, POSTE 8mx150daN - COMPLETA APROVADA CONCESSIONÁRIA LOCAL | F114: 1 | G114: un | H114: =D114*(($F$6/100)+1) -> 3066.62 | I114: =SUM(F114*H114) -> 3066.62
E116: Total do item.............................................................................................................................................................................................................................................................................. | J116: =SUM(I114:I114) -> 3066.62
A117: 3
E118: TOTAL GERAL DA OBRA ............................................................................................................................................................ R$ | J118: =SUM(J116,J112,J101) -> 48865
B120: *Cotação: Itens com cotação de preço poderão ser conferidos pelo município antes da licitação.
B122: S= Tabela SINAPI (Sintética)
B123: I= Tabela SINAPI (Insumos)
B124: Reg= Tabela Sinap Regional-Chapecó
E125: Maravilha (SC), dezembro de 2023.
B128: O valor do material e mão de obra foi obtido através da tabela do SINAPI com Desoneração - Novembro / 2023 | G128: ________________________________________
B129: BDI considerado para itens SINAP: 22,00% | G129: Mauro Dagostin
B130: BDI considerado para itens de cotação de preço: 22,00% | G130: Engenheiro eletricista – CREA/SC 104349-0
G131: AMERIOS (Associação dos Municípios do Entre Rios)

Sheet COMPOSIÇÃO (hidden)
B3: ENTRADA DE ENERGIA - MONO 40A
B4: 101489 | C4: ENTRADA DE ENERGIA ELÉTRICA, AÉREA, MONOFÁSICA, COM CAIXA DE SOBREPOR, CABO DE 10 MM2 E DISJUNTOR DIN 50A (NÃO INCLUSO O POSTE DE CONCRETO). | D4: 1 | E4: 1440.08
B5: 41195 I. | C5: POSTE DE CONCRETO DUPLO T 8Mx150daN | D5: 1 | E5: 780.65
B6: 39469 I. | C6: DPS CLASSE 2 - IN=5KA - UM=275V | D6: 1 | E6: 64.41
E8: =SUM(E4:E6) -> 2285.14
B10: ENTRADA DE ENERGIA - BI 63A
B11: 101498 | C11: ENTRADA DE ENERGIA ELÉTRICA, AÉREA, BIFÁSICA, COM CAIXA DE SOBREPOR, CABO DE 16 MM2 E DISJUNTOR DIN 50A (NÃO INCLUSO O POSTE DE CONCRETO). | D11: 1 | E11: 1855.66
B12: 41195 I. | C12: POSTE DE CONCRETO DUPLO T 8Mx150daN | D12: 1 | E12: 709.68
B13: 39469 I. | C13: DPS CLASSE 2 - IN=5KA - UM=275V | D13: 2 | E13: 64.41
E15: =SUM(E11:E13) -> 2629.75
B18: ENTRADA DE ENERGIA - BI 50A
B19: 101497 | C19: ENTRADA DE ENERGIA ELÉTRICA, AÉREA, BIFÁSICA, COM CAIXA DE SOBREPOR, CABO DE 10 MM2 E DISJUNTOR DIN 50A (NÃO INCLUSO O POSTE DE CONCRETO). | D19: 1 | E19: 1739.53
B20: 41195 I. | C20: POSTE DE CONCRETO DUPLO T 8Mx150daN | D20: 1 | E20: 709.68
B21: 39469 I. | C21: DPS CLASSE 2 - IN=5KA - UM=275V | D21: 2 | E21: 64.41
E23: =SUM(E19:E21) -> 2513.62
